bitfinex-derivatives/quotes_ETHF0:USTF0_20250405
["timestamp","ask_amount","ask_price","bid_price","bid_amount"]
[1743832391347,0.66276,1811.1,1811.0,3.65986308]
[1743832393445,0.66276,1811.1,1811.0,3.65988174]
[1743832395141,0.66276,1811.1,1811.0,4.3226865]
[1743832395541,0.66276,1811.1,1811.0,3.6598865]
[1743832396643,0.66276,1811.1,1811.0,4.3226865]
[1743832396844,0.66276,1811.1,1811.0,3.6598865]
[1743832397044,0.66276,1811.1,1811.0,3.6598867]
[1743832397446,0.66276,1811.1,1811.0,3.6598864]
[1743832399051,0.66276,1811.1,1811.0,3.65988755]
[1743832399942,1.36676,1811.1,1811.0,3.65988755]
[1743832401446,0.66276,1811.1,1811.0,3.65988755]
[1743832404039,0.66276,1811.1,1811.0,4.32268755]
[1743832404247,0.66276,1811.1,1811.0,3.65988755]
[1743832404646,0.66276,1811.1,1811.0,3.65988388]
[1743832405650,0.66276,1811.1,1811.0,4.32268388]
[1743832406151,0.66276,1811.1,1811.0,3.65988388]
[1743832408142,0.66276,1811.1,1811.0,2.9014]
[1743832408448,0.66276,1811.1,1811.0,3.65988357]
[1743832410157,0.66276,1811.1,1811.0,3.6598868]
[1743832411961,0.66276,1811.1,1811.0,3.659888]
[1743832413062,0.66276,1811.1,1811.0,2.9014]
[1743832413262,0.66276,1811.1,1811.0,3.65988949]
[1743832415763,0.66276,1811.1,1811.0,3.65989604]
[1743832416765,0.66276,1811.1,1811.0,4.32269604]
[1743832417262,0.66276,1811.1,1811.0,3.65989604]
[1743832417667,0.66276,1811.1,1811.0,3.6598941]
[1743832419470,0.66276,1811.1,1811.0,3.65989924]
[1743832421266,1.4712,1811.2,1811.0,3.65981141]
[1743832421267,2.13395,1811.2,1811.0,3.65981141]
[1743832421468,0.66275,1811.2,1811.1,2.28605592]
[1743832421673,0.66275,1811.2,1811.1,1.5277]
[1743832427768,2.11855,1811.2,1811.1,1.5277]
[1743832432879,0.66275,1811.2,1811.1,1.5277]
[1743832442784,0.66275,1811.2,1811.1,2.19046]
[1743832443782,0.66275,1811.2,1811.1,2.948757]
[1743832444478,0.66275,1811.2,1811.1,2.285997]
[1743832444980,0.66275,1811.2,1811.1,2.28591702]
[1743832445181,0.66275,1811.2,1811.1,2.94867702]
[1743832446882,0.66275,1811.2,1811.1,2.94859547]
[1743832447082,0.00826834,1811.3,1811.2,0.66272]
[1743832447385,0.00826834,1811.3,1811.2,4.36475547]
[1743832447783,0.67095834,1811.3,1811.2,4.36475547]
[1743832448173,0.00826834,1811.3,1811.2,4.36475547]
[1743832448377,0.67095834,1811.3,1811.2,4.36475547]
[1743832449780,0.00826834,1811.3,1811.2,4.36475547]
[1743832450180,0.67095834,1811.3,1811.2,7.57255547]
[1743832450584,0.67095834,1811.3,1811.2,7.57136352]
[1743832452081,0.00826834,1811.3,1811.2,7.57136352]
[1743832454383,0.00826834,1811.3,1811.2,7.57098456]
[1743832456293,0.00826834,1811.3,1811.2,7.570906]
[1743832457592,0.00826834,1811.3,1811.2,6.81442]
[1743832457794,0.00826834,1811.3,1811.2,7.57090307]
[1743832458086,0.00826834,1811.3,1811.2,6.81442]
[1743832459193,0.00826834,1811.3,1811.2,7.57092003]
[1743832459793,0.00826834,1811.3,1811.2,7.57090736]
[1743832460497,0.00826834,1811.3,1811.2,6.81442]
[1743832460692,0.00826834,1811.3,1811.2,7.57088281]
[1743832467203,0.00826834,1811.3,1811.2,4.36308281]
[1743832467497,0.00826834,1811.3,1811.2,7.57088281]
[1743832468499,0.00826834,1811.3,1811.2,7.57076596]
[1743832472306,0.00826834,1811.3,1811.2,6.81442]
[1743832472502,0.00826834,1811.3,1811.2,7.57115571]
[1743832473198,0.00826834,1811.3,1811.2,4.36335571]
[1743832474309,0.00826834,1811.3,1811.2,7.57115571]
[1743832478009,1.53546834,1811.3,1811.2,7.57213655]
[1743832479910,1.53546834,1811.3,1811.2,7.57225289]
[1743832481519,1.53546834,1811.3,1811.2,8.10076005]
[1743832481720,1.53546834,1811.3,1811.2,8.1008616]
[1743832481919,1.53546834,1811.3,1811.2,7.57235416]
[1743832482523,1.53546834,1811.3,1811.2,8.10088226]
[1743832485420,1.53546834,1811.3,1811.2,7.3429481]
[1743832485624,1.53546834,1811.3,1811.2,8.1010966]
[1743832487427,1.53546834,1811.3,1811.2,8.10134403]
[1743832488127,1.53546834,1811.3,1811.2,4.89354403]
[1743832488323,1.53546834,1811.3,1811.2,8.10134403]
[1743832489825,1.53546834,1811.3,1811.2,6.63954403]
[1743832490627,1.53546834,1811.3,1811.2,6.11083785]
[1743832490826,1.53546834,1811.3,1811.2,6.6395448]
[1743832493828,0.00826834,1811.3,1811.2,6.6395448]
[1743832494834,0.00826834,1811.3,1811.2,5.88132695]
[1743832495034,0.00826834,1811.3,1811.2,6.63954442]
[1743832496739,0.00826834,1811.3,1811.2,6.63956587]
[1743832497341,0.00826834,1811.3,1811.2,6.6395777]
[1743832501744,1.45936834,1811.3,1811.2,6.6395777]
[1743832503638,1.45936834,1811.3,1811.2,6.11085902]
[1743832503843,1.45936834,1811.3,1811.2,6.6395988]
[1743832505148,0.00826834,1811.3,1811.2,6.6395988]
[1743832505444,0.00826834,1811.3,1811.2,6.63960757]
[1743832505643,0.00826834,1811.3,1811.2,6.63959072]
[1743832506645,8.34e-06,1811.3,1811.2,6.63959072]
[1743832507445,8.34e-06,1811.3,1811.2,6.63935272]
[1743832508148,8.34e-06,1811.3,1811.2,7.35145272]
[1743832509847,8.34e-06,1811.3,1811.2,8.11715272]
[1743832513037,8.34e-06,1811.3,1811.2,8.11675904]
[1743832516849,8.34e-06,1811.3,1811.2,8.11677655]
[1743832518349,8.34e-06,1811.3,1811.2,6.87621436]
[1743832518550,2.27410834,1811.3,1811.2,6.87621436]
[1743832518749,2.27410834,1811.3,1811.2,6.11051436]
[1743832518953,2.93679834,1811.3,1811.2,3.96569436]
[1743832519151,5.43679834,1811.3,1811.2,0.75789436]
[1743832519351,0.66272,1811.2,1811.1,0.00826834]
[1743832519551,2.20022,1811.2,1811.1,0.76598008]
[1743832519845,4.70022,1811.2,1811.1,0.76598008]
[1743832520350,2.20022,1811.2,1811.1,0.76598008]
[1743832520751,2.20022,1811.2,1811.1,0.76573678]
[1743832520945,11.38502,1811.2,1811.1,0.00826834]
[1743832521147,0.66288,1810.8,1810.6,0.66292]
[1743832521352,0.7446,1810.7,1810.6,0.66292]
[1743832521553,2.8756,1810.7,1810.6,1.41982088]
[1743832523456,2.8756,1810.7,1810.6,2.86092088]
[1743832524254,2.8756,1810.7,1810.6,2.85619448]
[1743832527255,3.2078,1811.2,1810.7,1.65728]
[1743832527452,3.0167,1811.1,1810.8,0.7095]
[1743832527652,3.67947,1811.1,1811.0,0.66277]
[1743832528157,3.67947,1811.1,1810.9,2.06501]
[1743832528358,3.67947,1811.1,1811.0,0.6628]
[1743832528555,3.67947,1811.1,1811.0,2.065]
[1743832528757,3.67947,1811.1,1811.0,1.4022]
[1743832528956,3.67947,1811.1,1811.0,2.065]
[1743832529355,3.0167,1811.1,1811.0,2.065]
[1743832529558,3.67946,1811.1,1811.0,1.4022]
[1743832530654,0.66282,1811.0,1810.8,1.37234]
[1743832530864,0.66283,1810.9,1810.8,2.78944]
[1743832531159,2.13623,1811.0,1810.9,0.66283]
[1743832531561,2.13623,1811.0,1810.8,2.78945]
[1743832531760,2.13623,1811.0,1810.9,0.66283]
[1743832532062,2.13623,1811.0,1810.8,2.1266]
[1743832532256,2.13623,1811.0,1810.9,0.66283]
[1743832533262,2.13623,1811.0,1810.9,2.07823]
[1743832535360,2.13623,1811.0,1810.9,1.4154]
[1743832535865,2.13623,1811.0,1810.9,2.07823]
[1743832537172,0.66284,1810.9,1810.8,0.66284]
[1743832537378,2.18274,1810.9,1810.8,0.66284]
[1743832537572,1.5199,1810.9,1810.8,0.66284]
[1743832537772,1.5199,1810.9,1810.8,2.15714]
[1743832538577,2.18273,1810.9,1810.8,2.15714]
[1743832541081,1.5199,1810.9,1810.8,2.15714]
[1743832541681,2.18273,1810.9,1810.8,2.15714]
[1743832547383,0.66283,1810.9,1810.8,2.91027118]
[1743832548375,0.66283,1810.9,1810.8,2.91085176]
[1743832552184,0.66283,1810.9,1810.8,0.75371176]
[1743832552881,0.66283,1810.9,1810.8,1.41658176]
[1743832553083,0.66283,1810.9,1810.8,0.75371176]
[1743832553687,0.66283,1810.9,1810.8,2.15361176]
[1743832554088,0.66283,1810.9,1810.8,2.1541356]
[1743832554589,0.66283,1810.9,1810.8,2.8170056]
[1743832555088,2.09893,1810.9,1810.8,2.1541356]
[1743832555889,2.09893,1810.9,1810.8,2.15415827]
[1743832558693,2.09893,1810.9,1810.8,2.81702827]
[1743832559189,3.2078,1811.2,1810.8,2.15415827]
[1743832559395,3.2078,1811.2,1810.9,3.71915827]
[1743832559692,0.66276,1811.1,1811.0,1.4916]
[1743832561695,0.66276,1811.1,1811.0,2.1544]
[1743832562094,0.66276,1811.1,1811.0,1.4916]
[1743832564589,4.6912,1811.2,1811.0,2.24583282]
[1743832564590,5.35393,1811.2,1811.0,2.24583282]
[1743832564796,0.66276,1811.1,1811.0,1.4916]
[1743832564986,0.66276,1811.1,1811.0,1.4170165]
[1743832566393,0.66276,1811.1,1811.0,0.66279]
[1743832569797,0.66276,1811.1,1811.0,1.41679607]
[1743832570100,0.66276,1811.1,1811.0,1.41678468]
[1743832570596,0.66276,1811.1,1811.0,0.66279]
[1743832570998,0.66276,1811.1,1811.0,1.41675256]
[1743832573301,0.66276,1811.1,1811.0,0.75396256]
[1743832573501,0.6628,1811.0,1810.9,5.34391]
[1743832573695,0.6628,1811.0,1810.9,6.09776267]
[1743832573895,0.6628,1811.0,1810.9,6.09776521]
[1743832577502,0.6628,1811.0,1810.9,6.09778377]
[1743832578102,0.6628,1811.0,1810.9,2.88998377]
[1743832578300,0.6628,1811.0,1810.9,6.09778377]
[1743832579404,0.6628,1811.0,1810.9,6.09778465]
[1743832579607,0.6628,1811.0,1810.9,5.43497465]
[1743832579903,0.6628,1811.0,1810.9,4.6811]
[1743832580100,2.8308,1811.0,1810.9,4.6811]
[1743832580403,2.8308,1811.0,1810.9,5.34393]
[1743832580603,2.8308,1811.0,1810.9,6.09780302]
[1743832580798,2.8308,1811.0,1810.9,5.34393]
[1743832581006,2.8308,1811.0,1810.9,6.09779589]
[1743832581304,2.8308,1811.0,1810.9,6.09779067]
[1743832585004,2.8308,1811.0,1810.9,6.09790961]
[1743832585204,2.8308,1811.0,1810.9,5.43507961]
[1743832585407,2.8308,1811.0,1810.9,6.09790961]
[1743832586211,2.8308,1811.0,1810.9,4.62460961]
[1743832586413,2.8308,1811.0,1810.9,3.96177961]
[1743832586910,2.8308,1811.0,1810.9,5.44999502]
[1743832587506,2.8308,1811.0,1810.9,6.11282502]
[1743832587702,2.8308,1811.0,1810.9,5.44999502]
[1743832589012,2.8308,1811.0,1810.9,4.6959]
[1743832590622,2.8308,1811.0,1810.9,3.2078]
[1743832592214,0.66283,1810.9,1810.8,2.09777]
[1743832592419,2.88303,1810.9,1810.8,2.09777]
[1743832592722,2.88303,1810.9,1810.8,1.4349]
[1743832593019,2.88303,1810.9,1810.8,2.09777]
[1743832593211,2.88303,1810.9,1810.8,1.4349]
[1743832600817,2.88303,1810.9,1810.8,2.09777]
[1743832601016,1.41901,1811.0,1810.9,0.66283]
[1743832601205,0.66281,1811.0,1810.9,2.93803]
[1743832602108,0.66281,1811.0,1810.9,2.2752]
[1743832602816,0.66281,1811.0,1810.9,2.93803]
[1743832603021,0.66281,1811.0,1810.9,2.2752]
[1743832604622,0.66281,1811.0,1810.9,2.93803]
[1743832606321,0.66281,1811.0,1810.9,2.2752]
[1743832606920,0.66281,1811.0,1810.9,2.93803]
[1743832607127,0.66281,1811.0,1810.9,2.2752]
[1743832619736,0.66281,1811.0,1810.9,2.93803]
[1743832619936,0.66281,1811.0,1810.9,3.02968471]
[1743832621537,0.66281,1811.0,1810.9,3.02964589]
[1743832623339,0.66281,1811.0,1810.9,2.2752]
[1743832623528,0.66281,1811.0,1810.9,3.02960343]
[1743832625136,0.66281,1811.0,1810.9,2.2752]
[1743832628839,0.66287,1810.8,1810.7,4.62348]
[1743832629043,0.66287,1810.8,1810.7,5.37794319]
[1743832630142,0.66287,1810.8,1810.7,5.37797319]
[1743832630345,0.66287,1810.8,1810.7,6.78247319]
[1743832630839,0.66287,1810.8,1810.7,6.78244769]
[1743832633141,0.66287,1810.8,1810.7,3.57464769]
[1743832633339,0.66287,1810.8,1810.7,6.78244769]
[1743832634545,0.66287,1810.8,1810.7,6.78241234]
[1743832636350,0.66287,1810.8,1810.7,6.78239081]
[1743832637048,0.66287,1810.8,1810.7,3.57459081]
[1743832637348,0.66287,1810.8,1810.7,6.78239081]
[1743832637647,0.66287,1810.8,1810.7,3.57459081]
[1743832637848,0.66287,1810.8,1810.7,6.78239081]
[1743832641051,0.66287,1810.8,1810.7,6.7823637]
[1743832641654,2.14936,1810.9,1810.8,0.66287]
[1743832641949,0.66286,1810.9,1810.8,3.6690237]
[1743832642150,0.66286,1810.9,1810.8,3.66899968]
[1743832642752,0.66286,1810.9,1810.8,3.66899138]
[1743832643054,0.66286,1810.9,1810.8,3.00612138]
[1743832643954,0.66286,1810.9,1810.8,3.00612288]
[1743832647858,0.66286,1810.9,1810.8,3.00611752]
[1743832648761,0.66286,1810.9,1810.8,3.66898752]
[1743832649160,0.66286,1810.9,1810.8,3.00611752]
[1743832649463,0.66286,1810.9,1810.8,3.00611823]
[1743832649664,0.66286,1810.9,1810.8,3.66898823]
[1743832650063,0.66286,1810.9,1810.8,3.00611823]
[1743832650364,2.16156,1810.9,1810.8,2.29031823]
[1743832650564,2.85866,1810.9,1810.8,2.29031823]
[1743832650764,2.85866,1810.9,1810.8,1.536]
[1743832651367,0.66291,1810.7,1810.6,1.36722]
[1743832651563,0.66291,1810.7,1810.6,3.5310899]
[1743832651965,2.889,1810.8,1810.7,0.66291]
[1743832652264,2.889,1810.8,1810.7,2.1638699]
[1743832652666,2.889,1810.8,1810.7,2.8267799]
[1743832653365,2.889,1810.8,1810.7,2.1638699]
[1743832654069,3.477,1811.0,1810.7,2.8267799]
[1743832654364,0.66286,1810.9,1810.8,3.63807]
[1743832654564,0.66286,1810.9,1810.8,4.3923322]
[1743832655067,0.66286,1810.9,1810.8,4.39232627]
[1743832655564,0.66281,1811.0,1810.9,0.66282]
[1743832655761,0.6628,1811.0,1810.9,1.4498]
[1743832661576,3.47700834,1811.3,1810.9,2.20405258]
[1743832661773,3.47700834,1811.3,1811.0,1.46025258]
[1743832661971,0.66272,1811.2,1811.1,1.48799436]
[1743832662171,0.66272,1811.2,1811.1,2.1289]
[1743832669081,0.66272,1811.2,1811.1,2.79166]
[1743832674587,1.38980834,1811.3,1811.1,2.79166]
[1743832674885,2.05252834,1811.3,1811.2,2.09242]
[1743832676787,2.05252834,1811.3,1811.2,2.84032]
[1743832680678,2.05252834,1811.3,1811.2,2.1776]
[1743832680884,2.05252834,1811.3,1811.2,2.84032]
[1743832682191,8.34e-06,1811.3,1811.2,6.04812]
[1743832682382,8.34e-06,1811.3,1811.2,6.80059396]
[1743832684194,8.34e-06,1811.3,1811.2,6.80068678]
[1743832685997,8.34e-06,1811.3,1811.2,6.80059635]
[1743832687894,8.34e-06,1811.3,1811.2,6.80058878]
[1743832688693,8.34e-06,1811.3,1811.2,10.802895]
[1743832691595,8.34e-06,1811.3,1811.2,10.80276234]
[1743832692397,8.34e-06,1811.3,1811.2,13.30276234]
[1743832693196,8.34e-06,1811.3,1811.2,10.80276234]
[1743832695393,8.34e-06,1811.3,1811.2,10.80178896]
[1743832699199,8.34e-06,1811.3,1811.2,10.80180873]
[1743832701006,8.34e-06,1811.3,1811.2,10.80182492]
[1743832701207,8.34e-06,1811.3,1811.2,10.80182575]
[1743832702116,8.34e-06,1811.3,1811.2,7.59402575]
[1743832702415,8.34e-06,1811.3,1811.2,10.80182575]
[1743832702810,8.34e-06,1811.3,1811.2,10.0500515]
[1743832703114,8.34e-06,1811.3,1811.2,10.80187761]
[1743832704815,8.34e-06,1811.3,1811.2,10.80198522]
[1743832706813,8.34e-06,1811.3,1811.2,6.57908522]
[1743832707017,8.34e-06,1811.3,1811.2,6.05215372]
[1743832707518,1.51020834,1811.3,1811.2,6.05215372]
[1743832709917,1.51020834,1811.3,1811.2,2.84435372]
[1743832710117,1.51020834,1811.3,1811.2,6.05215372]
[1743832713920,1.51020834,1811.3,1811.2,4.62245372]
[1743832714219,1.51020834,1811.3,1811.2,4.62366371]
[1743832715920,1.51020834,1811.3,1811.2,4.62367039]
[1743832716714,2.17289834,1811.3,1811.2,4.62367039]
[1743832717123,1.51020834,1811.3,1811.2,4.62367039]
[1743832717323,2.17289834,1811.3,1811.2,4.62367039]
[1743832717625,1.51020834,1811.3,1811.2,4.62367039]
[1743832717821,1.51020834,1811.3,1811.2,4.62366418]
[1743832718524,2.17289834,1811.3,1811.2,4.62366418]
[1743832718725,1.51020834,1811.3,1811.2,4.62366418]
[1743832719618,1.51020834,1811.3,1811.2,4.62360999]
[1743832721018,1.51020834,1811.3,1811.2,1.41580999]
[1743832721226,1.51020834,1811.3,1811.2,4.62360999]
[1743832723521,2.17289834,1811.3,1811.2,4.62360999]
[1743832723825,1.51020834,1811.3,1811.2,4.62360999]
[1743832726024,1.51020834,1811.3,1811.2,6.08640999]
[1743832726924,8.34e-06,1811.3,1811.2,6.83270999]
[1743832727125,8.34e-06,1811.3,1811.2,6.83259575]
[1743832728926,8.34e-06,1811.3,1811.2,6.83267419]
[1743832732024,8.34e-06,1811.3,1811.2,6.83292444]
[1743832733830,1.51450834,1811.3,1811.2,6.83292444]
[1743832734529,2.17719834,1811.3,1811.2,6.83333968]
[1743832735031,2.17719834,1811.3,1811.2,6.08703968]
[1743832736333,2.17719834,1811.3,1811.2,5.42431968]
[1743832737435,2.17719834,1811.3,1811.2,6.08703968]
[1743832738235,2.17719834,1811.3,1811.2,6.08741339]
[1743832740033,2.17719834,1811.3,1811.2,5.33332]
[1743832740234,2.17719834,1811.3,1811.2,6.0873994]
[1743832741441,2.17719834,1811.3,1811.2,6.08739817]
[1743832742133,2.17719834,1811.3,1811.2,0.75407817]
[1743832742641,2.17719834,1811.3,1811.2,0.66272]
[1743832742838,0.66272,1811.2,1811.1,3.62613]
[1743832743037,0.66272,1811.2,1811.1,4.38011205]
[1743832743240,0.66272,1811.2,1811.1,4.38010303]
[1743832743940,1.37452,1811.2,1811.1,4.38010303]
[1743832744238,1.37452,1811.2,1811.1,4.38013303]
[1743832746541,1.37452,1811.2,1811.1,0.75397303]
[1743832746742,0.66276,1811.1,1811.0,3.2078]
[1743832747038,2.17866,1811.1,1811.0,3.96142719]
[1743832747741,2.17866,1811.1,1811.0,4.62422719]
[1743832748341,1.5159,1811.1,1811.0,4.62422719]
[1743832748543,1.5159,1811.1,1811.0,5.39212719]
[1743832748738,1.5159,1811.1,1811.0,4.6385]
[1743832748944,1.5159,1811.1,1811.0,5.39187784]
[1743832749143,2.17866,1811.1,1811.0,5.39187784]
[1743832752244,2.17866,1811.1,1811.0,4.72907784]
[1743832752543,2.17866,1811.1,1811.0,4.72885849]
[1743832752744,2.17866,1811.1,1811.0,6.88855849]
[1743832753145,2.17866,1811.1,1811.0,6.22575849]
[1743832753747,2.17866,1811.1,1811.0,6.88855849]
[1743832754138,2.17866,1811.1,1811.0,3.68075849]
[1743832754339,2.17866,1811.1,1811.0,2.9276]
[1743832754646,2.17866,1811.1,1811.0,3.68065269]
[1743832756543,2.17866,1811.1,1811.0,3.01785269]
[1743832757247,2.17866,1811.1,1811.0,3.68065269]
[1743832758146,2.17866,1811.1,1811.0,3.68062975]
[1743832758848,0.66276,1811.1,1811.0,3.68062975]
[1743832760338,2.9617,1811.2,1811.0,3.68062975]
[1743832760541,3.62442,1811.2,1811.1,1.4984]
[1743832761647,3.62442,1811.2,1811.1,2.16116]
[1743832762148,3.62442,1811.2,1811.1,1.4984]
[1743832762750,3.62442,1811.2,1811.1,2.16116]
[1743832762947,3.62442,1811.2,1811.1,1.4984]
[1743832764251,3.62442,1811.2,1811.1,2.16116]
[1743832765846,3.62442,1811.2,1811.1,1.4984]
[1743832766151,0.66272,1811.2,1811.1,2.16116]
[1743832766345,0.66272,1811.2,1811.1,2.86676]
[1743832767548,0.66272,1811.2,1811.1,3.6206066]
[1743832767853,3.47400834,1811.3,1811.2,0.66272]
[1743832767854,8.34e-06,1811.3,1811.2,0.66272]
[1743832768151,0.66269834,1811.3,1811.2,2.81752]
[1743832768851,0.66269834,1811.3,1811.2,2.1548]
[1743832772456,0.66272,1811.2,1811.1,0.7056]
[1743832772752,0.66276,1811.1,1811.0,2.1453]
[1743832772954,3.9055,1811.1,1810.8,0.7544]
[1743832773153,0.66283,1810.9,1810.8,1.4416]
[1743832773350,0.66283,1810.9,1810.8,2.19596708]
[1743832773549,2.09343,1810.9,1810.8,2.19596708]
[1743832774249,2.09343,1810.9,1810.8,1.4416]
[1743832775154,0.66287,1810.8,1810.7,0.7037]
[1743832775448,2.86117,1810.8,1810.7,2.12043279]
[1743832775645,2.86117,1810.8,1810.7,3.65343279]
[1743832775847,2.86117,1810.8,1810.7,2.99030194]
[1743832777360,2.86117,1810.8,1810.7,2.2367]
[1743832790974,2.86117,1810.8,1810.7,2.89961]
[1743832792275,2.09347,1810.8,1810.7,2.89961]
[1743832792676,2.09347,1810.8,1810.7,2.2367]
[1743832798977,2.09347,1810.8,1810.7,2.89961]
[1743832799874,2.09347,1810.8,1810.7,2.2367]
[1743832800077,2.09347,1810.8,1810.7,2.89961]
[1743832800279,0.66287,1810.8,1810.7,2.89961]
[1743832800973,0.66287,1810.8,1810.7,2.2367]
[1743832802376,0.66287,1810.8,1810.7,2.99102979]
[1743832803882,2.92987,1810.8,1810.7,2.2367]
[1743832804978,2.92987,1810.8,1810.7,2.99110336]
[1743832805280,2.92987,1810.8,1810.7,2.89961]
[1743832805485,2.92987,1810.8,1810.7,2.99112904]
[1743832805981,2.92987,1810.8,1810.7,2.2367]
[1743832806385,2.92987,1810.8,1810.7,2.99114111]
[1743832806774,2.92987,1810.8,1810.7,2.2367]
[1743832806982,2.92987,1810.8,1810.7,2.99113927]
[1743832807988,2.92987,1810.8,1810.7,2.28743927]
[1743832810588,2.92987,1810.8,1810.7,2.28748614]
[1743832810988,0.66287,1810.8,1810.7,2.95039614]
[1743832811386,3.475,1810.9,1810.7,2.28748614]
[1743832811690,4.13783,1810.9,1810.8,2.2072]
[1743832811888,7.34562,1811.0,1810.9,0.66283]
[1743832812090,7.34562,1811.0,1810.9,1.447]
[1743832823693,4.13782,1811.0,1810.9,1.447]
[1743832831703,5.55662,1811.0,1810.9,1.447]
[1743832845219,3.2078,1811.1,1810.9,1.447]
[1743832845419,3.2078,1811.1,1811.0,1.3737]
[1743832845614,4.13672,1811.2,1811.1,0.66276]
[1743832845817,0.66272,1811.2,1811.1,3.70677343]
[1743832846012,0.66272,1811.2,1811.1,3.04401343]
[1743832846217,0.66272,1811.2,1811.1,3.04399187]
[1743832847420,0.66272,1811.2,1811.1,2.2895]
[1743832848018,2.86472,1811.2,1811.1,2.2895]
[1743832848921,0.66276,1811.1,1811.0,0.7109]
[1743832849128,2.11766,1811.1,1811.0,0.7109]
[1743832849525,0.6628,1811.0,1810.9,2.9452]
[1743832849827,2.0622,1811.0,1810.9,3.69868838]
[1743832851627,0.66283,1810.9,1810.8,0.7157]
[1743832851831,2.06223,1810.9,1810.8,1.46914069]
[1743832852024,3.54743,1810.9,1810.8,0.7157]
[1743832852227,0.66287,1810.8,1810.7,2.1253]
[1743832852526,2.06207,1810.8,1810.7,2.87876631]
[1743832852830,2.06207,1810.8,1810.7,2.1253]
[1743832853033,2.06207,1810.8,1810.7,2.87877265]
[1743832853337,2.06207,1810.8,1810.7,2.1253]
[1743832853730,2.06207,1810.8,1810.7,2.8787792]
[1743832854729,2.06207,1810.8,1810.7,2.1253]
[1743832856329,2.06207,1810.8,1810.7,2.87876759]
[1743832856631,2.06207,1810.8,1810.7,2.1253]
[1743832860137,2.06207,1810.8,1810.7,2.78821]
[1743832861541,2.06207,1810.8,1810.7,2.1253]
[1743832863842,2.06207,1810.8,1810.7,2.78821]
[1743832864744,2.06207,1810.8,1810.7,2.1253]
[1743832874550,5.26987,1810.8,1810.7,1.4292]
[1743832874752,0.66298,1810.5,1810.4,1.36161]
[1743832875056,0.66298,1810.5,1810.4,2.86277654]
[1743832875248,0.66298,1810.5,1810.4,1.4466]
[1743832875448,0.66298,1810.5,1810.4,2.10962]
[1743832876346,0.66298,1810.5,1810.4,1.4466]
[1743832876544,0.66298,1810.5,1810.4,2.10962]
[1743832877052,0.66298,1810.5,1810.4,2.86273187]
[1743832877853,0.66298,1810.5,1810.4,4.28293187]
[1743832878947,0.66298,1810.5,1810.4,3.52982]
[1743832879448,0.66298,1810.5,1810.4,4.28316615]
[1743832879848,0.66298,1810.5,1810.4,2.8668]
[1743832880955,2.05828,1810.5,1810.4,2.8668]
[1743832881349,2.05828,1810.5,1810.4,3.62034311]
[1743832882255,2.05828,1810.5,1810.4,2.8668]
[1743832882453,2.05828,1810.5,1810.4,3.62031751]
[1743832882760,5.26608,1810.5,1810.4,0.6986]
[1743832883057,0.66305,1810.3,1810.2,2.76616]
[1743832883260,0.66305,1810.3,1810.2,4.27221627]
[1743832886560,0.66305,1810.3,1810.2,4.27181915]
[1743832888160,0.65764637,1810.3,1810.2,4.27181915]
[1743832889355,2.15065,1810.4,1810.3,0.66305]
[1743832889550,0.66299,1810.5,1810.3,2.15128982]
[1743832889750,0.66299,1810.5,1810.4,0.663]
[1743832889956,0.66299,1810.5,1810.4,2.7667]
[1743832892562,1.4686,1810.8,1810.7,0.66291]
[1743832892768,0.66287,1810.8,1810.7,0.66291]
[1743832893367,5.63696,1810.9,1810.8,0.66287]
[1743832894263,5.63696,1810.9,1810.8,2.92007]
[1743832897070,1.5001,1810.9,1810.8,2.92007]
[1743832897569,4.1368,1811.0,1810.9,0.66283]
[1743832897762,4.1368,1811.0,1810.9,2.06613]
[1743832897964,0.6628,1811.0,1810.9,2.06613]
[1743832900164,6.56732,1811.1,1810.7,3.2078]
[1743832900371,0.66291,1810.7,1810.6,0.66291]
[1743832900569,0.6629,1810.8,1810.7,0.6629]
[1743832900870,2.9562,1810.8,1810.7,0.6629]
[1743832902666,2.95617,1810.8,1810.7,0.6629]
[1743832902865,2.95617,1810.8,1810.7,2.8355]
[1743832904168,2.95617,1810.8,1810.7,2.1726]
[1743832904772,2.95617,1810.8,1810.7,2.83551]
[1743832906774,2.95617,1810.8,1810.7,0.7274]
[1743832907367,2.95617,1810.8,1810.7,1.39031]
[1743832921086,2.95617,1810.8,1810.7,0.7274]
[1743832921486,2.95617,1810.8,1810.7,1.39031]
[1743832922082,2.95617,1810.8,1810.7,0.7274]
[1743832922283,0.66287,1810.8,1810.7,1.39031]
[1743832922484,0.66287,1810.8,1810.7,2.85971]
[1743832923393,0.66287,1810.8,1810.7,2.1968]
[1743832923585,0.66294,1810.6,1810.5,3.2078]
[1743832923787,1.65729,1810.7,1810.4,3.60309]
[1743832923993,2.06468,1810.5,1810.4,3.60309]
[1743832924493,2.06468,1810.5,1810.4,3.6939793]
[1743832924689,2.06468,1810.5,1810.4,2.9401]
[1743832925998,2.06468,1810.5,1810.4,0.768]
[1743832926293,4.6095,1810.5,1810.2,0.66306]
[1743832926485,0.66306,1810.3,1810.2,0.66306]
[1743832926690,0.66306,1810.3,1810.2,2.82558319]
[1743832926997,2.08425,1810.4,1810.3,0.66305]
[1743832927297,2.08425,1810.4,1810.3,2.79775]
[1743832931400,2.08425,1810.4,1810.3,2.1347]
[1743832931599,2.08425,1810.4,1810.3,2.79775]
[1743832932200,2.08425,1810.4,1810.3,2.1347]
[1743832934100,2.08425,1810.4,1810.3,2.79775]
[1743832934494,0.66305,1810.4,1810.3,2.79775]
[1743832941005,2.10955,1810.4,1810.3,2.79775]
[1743832948505,0.66305,1810.4,1810.3,2.79775]
[1743832949809,3.474,1810.5,1810.4,0.66302]
[1743832949810,4.13698,1810.5,1810.4,0.66302]
[1743832950012,4.13698,1810.5,1810.4,2.80202]
[1743832950510,0.66298,1810.5,1810.4,2.80202]
[1743832951608,0.66293,1810.7,1810.6,0.66293]
[1743832952205,0.66293,1810.7,1810.6,2.05973]
[1743832956310,2.15603,1810.7,1810.6,2.05973]
[1743832960714,2.15603,1810.7,1810.6,1.3968]
[1743832960920,0.66298,1810.5,1810.4,0.7422]
[1743832961118,0.66298,1810.5,1810.4,1.4952939]
[1743832961422,0.66298,1810.5,1810.4,0.7422]